fUST/lending_fUST_20260628
["ID","MTS","AMOUNT","RATE_DAILY","PERIOD"]
[426595604,1782652247000,-1069.69229992,0.00026973,2]
[426595611,1782652301000,166.0,0.00022,120]
[426595743,1782653432000,-500.0,0.00026595,2]
[426595723,1782653432000,-500.0,0.00025463,2]
[426595725,1782653432000,-500.0,0.00025463,2]
[426595727,1782653432000,-309.45125604,0.00025463,2]
[426595745,1782653432000,-500.0,0.00026595,2]
[426595741,1782653432000,-500.0,0.00026595,2]
[426595735,1782653432000,-395.4,0.00026,2]
[426595733,1782653432000,-257.6509111,0.00025463,2]
[426595737,1782653432000,-2871.84721187,0.00026496,2]
[426595739,1782653432000,-500.0,0.00026595,2]
[426595748,1782653432000,-407.57940387,0.00026595,2]
[426595746,1782653432000,-500.0,0.00026595,2]
[426596175,1782653443000,-597.7411697,0.00026595,2]
[426596310,1782654217000,2571.14794174,0.000135,2]
[426596311,1782654225000,5000.0,0.000135,2]
[426596312,1782654234000,3179.31941335,0.000135,2]
[426596331,1782654448000,11720.04140108,0.00030136,30]
[426596361,1782654632000,-7819.96212593,0.00015,2]
[426596360,1782654632000,-4200.59893976,0.00014702,2]
[426596362,1782654632000,-653.77917644,0.00015,2]
[426596372,1782654632000,-1001.54188993,0.00015,2]
[426596365,1782654632000,-297.62407123,0.00015,2]
[426596370,1782654632000,-11786.58355793,0.00015,2]
[426596367,1782654632000,-1649.38261788,0.00015,2]
[426596363,1782654632000,-1834.85073762,0.00015,2]
[426597051,1782655122000,417.15472785,0.00029146,30]
[426597096,1782655664000,160.0,0.00029145,30]
[426597098,1782655747000,2959.9750297,0.00030136,30]
[426597266,1782655838000,-758.199894,0.00023349,2]
[426597250,1782655838000,-500.0,0.00014999,2]
[426597246,1782655838000,-500.0,0.00014999,2]
[426597256,1782655838000,-7055.2110912,0.00017471,2]
[426597251,1782655838000,-357.8962573,0.00014999,2]
[426597247,1782655838000,-500.0,0.00014999,2]
[426597267,1782655838000,-186.2128744,0.00023806,2]
[426597258,1782655838000,-409.86539115,0.00017781,2]
[426597249,1782655838000,-500.0,0.00014999,2]
[426597253,1782655838000,-17996.22411415,0.00015,2]
[426597252,1782655838000,-500.0,0.00014999,2]
[426597245,1782655838000,-500.0,0.00014999,2]
[426597248,1782655838000,-500.0,0.00014999,2]
[426597254,1782655838000,-1001.0,0.00015,2]
[426597243,1782655838000,-615.57106677,0.00014999,2]
[426597244,1782655838000,-500.0,0.00014999,2]
[426597242,1782655838000,-500.0,0.00014999,2]
[426597241,1782655838000,-500.0,0.00014999,2]
[426597239,1782655838000,-500.0,0.00014999,2]
[426597240,1782655838000,-500.0,0.00014999,2]
[426597238,1782655838000,-4690.86821197,0.00014999,2]
[426597255,1782655838000,-4705.0,0.00015,2]
[426597257,1782655838000,-175.438797,0.00017755,2]
[426597270,1782655838000,-563.8530363,0.00023806,2]
[426597264,1782655838000,-288.3137906,0.00021442,2]
[426597261,1782655838000,-731.17058172,0.00018492,2]
[426597284,1782655838000,-25786.34244885,0.0002433,4]
[426597285,1782655838000,-20930.05159803,0.0002433,4]
[426597283,1782655838000,-939.64622799,0.00024232,2]
[426597282,1782655838000,-563.8530363,0.00023806,2]
[426597280,1782655838000,-563.8530363,0.00023806,2]
[426597278,1782655838000,-563.8530363,0.00023806,2]
[426597273,1782655838000,-563.8530363,0.00023806,2]
[426597277,1782655838000,-563.8530363,0.00023806,2]
[426597275,1782655838000,-563.8530363,0.00023806,2]
[426597272,1782655838000,-563.8530363,0.00023806,2]
[426597281,1782655838000,-563.8530363,0.00023806,2]
[426597271,1782655838000,-563.8530363,0.00023806,2]
[426597262,1782655838000,-6462.4734238,0.0002011,2]
[426597276,1782655838000,-563.8530363,0.00023806,2]
[426597259,1782655838000,-468.41758989,0.00017781,2]
[426597260,1782655838000,-249.57474092,0.0001786,2]
[426597265,1782655838000,-340.0,0.00023,2]
[426597263,1782655838000,-1941.1648651,0.0002011,2]
[426597279,1782655838000,-563.8530363,0.00023806,2]
[426597269,1782655838000,-563.8530363,0.00023806,2]
[426597268,1782655838000,-563.8530363,0.00023806,2]
[426597274,1782655838000,-563.8530363,0.00023806,2]
[426597291,1782655840000,-10658.35531225,0.0002433,4]
[426597328,1782655843000,-667.6,0.0002454,3]
[426597329,1782655843000,-556.34,0.0002454,3]
[426597330,1782655843000,-278.17,0.0002454,3]
[426597326,1782655843000,-758.199894,0.00024332,2]
[426597331,1782655843000,-834.55,0.0002454,3]
[426597323,1782655843000,-29272.74033827,0.0002433,4]
[426597325,1782655843000,-150.78015603,0.00024332,2]
[426597327,1782655843000,-151.0,0.000244,9]
[426597324,1782655843000,-151.02567191,0.0002433,2]
[426597333,1782655843000,-500.0,0.00024656,2]
[426597332,1782655843000,-939.64622799,0.00024656,2]
[426597336,1782655843000,-545.91,0.00024657,2]
[426597345,1782655843000,-500.0,0.00024657,2]
[426597341,1782655843000,-754.89,0.00024657,2]
[426597348,1782655843000,-363.8430513,0.00024657,2]
[426597347,1782655843000,-535.66,0.00024657,2]
[426597346,1782655843000,-436.02081455,0.00024657,2]
[426597335,1782655843000,-628.15,0.00024657,2]
[426597342,1782655843000,-500.0,0.00024657,2]
[426597343,1782655843000,-500.0,0.00024657,2]
[426597334,1782655843000,-500.0,0.00024657,2]
[426597339,1782655843000,-500.0,0.00024657,2]
[426597340,1782655843000,-160.60018944,0.00024657,2]
[426597344,1782655843000,-500.58,0.00024657,2]
[426597338,1782655843000,-500.0,0.00024657,2]
[426597337,1782655843000,-611.84,0.00024657,2]
[426597371,1782655850000,4267.009259,0.00029,30]
[426597374,1782655909000,1000.0,0.00024657,120]
[426597375,1782655909000,1000.0,0.00024657,120]
[426597376,1782655909000,1000.0,0.00024657,120]
[426597377,1782655909000,1000.0,0.00024657,120]
[426597380,1782655909000,1000.0,0.00024657,120]
[426597379,1782655909000,1000.0,0.00024657,120]
[426597383,1782655909000,1000.0,0.00024657,120]
[426597378,1782655909000,1000.0,0.00024657,120]
[426597381,1782655909000,1000.0,0.00024657,120]
[426597382,1782655909000,1000.0,0.00024657,120]
[426597385,1782655910000,237.47185085,0.00024657,120]
[426597384,1782655910000,1000.0,0.00024657,120]
[426597395,1782655939000,161.4559886,0.00024657,120]
[426597394,1782655939000,152.0,0.00024657,120]
[426597392,1782655939000,152.0,0.00024657,120]
[426597391,1782655939000,152.0,0.00024657,120]
[426597393,1782655939000,152.0,0.00024657,120]
[426597397,1782656019000,2526.78117744,0.00013,2]
[426597402,1782656274000,160.0,0.00029145,30]
[426597403,1782656694000,5000.0,0.000135,2]
[426597404,1782656716000,5000.0,0.000135,2]
[426597405,1782656740000,1722.75146747,0.000135,2]
[426597416,1782656941000,417.15472785,0.00029148,30]
[426597522,1782657032000,-1374.73926062,0.00013231,2]
[426597629,1782657038000,-500.0,0.00024655,2]
[426597631,1782657038000,-500.0,0.00024655,2]
[426597630,1782657038000,-500.0,0.00024655,2]
[426597628,1782657038000,-500.0,0.00024655,2]
[426597626,1782657038000,-500.0,0.00024655,2]
[426597627,1782657038000,-245.89,0.00024655,2]
[426597625,1782657038000,-524.57495,0.00024651,2]
[426597618,1782657038000,-524.57495,0.00024651,2]
[426597624,1782657038000,-474.94272345,0.00024651,2]
[426597623,1782657038000,-49.63222655,0.00024651,2]
[426597621,1782657038000,-524.57495,0.00024651,2]
[426597622,1782657038000,-524.57495,0.00024651,2]
[426597620,1782657038000,-524.57495,0.00024651,2]
[426597617,1782657038000,-524.57495,0.00024651,2]
[426597632,1782657038000,-504.89306817,0.00024656,2]
[426597616,1782657038000,-524.57495,0.00024651,2]
[426597607,1782657038000,-505.466596,0.00024062,2]
[426597613,1782657038000,-524.57495,0.00024651,2]
[426597600,1782657038000,-1615.76976871,0.00013365,2]
[426597599,1782657038000,-1074.56871114,0.00013231,2]
[426597601,1782657038000,-157.84,0.00018835,2]
[426597603,1782657038000,-1000.0,0.00021823,2]
[426597602,1782657038000,-162.783434,0.0002181,2]
[426597604,1782657038000,-1396.7918558,0.00022137,2]
[426597615,1782657038000,-524.57495,0.00024651,2]
[426597605,1782657038000,-189.6006997,0.00022406,2]
[426597608,1782657038000,-563.78773681,0.00024557,2]
[426597610,1782657038000,-250.35,0.00024647,3]
[426597609,1782657038000,-500.7,0.00024647,3]
[426597612,1782657038000,-524.57495,0.00024651,2]
[426597614,1782657038000,-524.57495,0.00024651,2]
[426597611,1782657038000,-751.07,0.00024647,3]
[426597606,1782657038000,-165.09999501,0.00023657,2]
[426597633,1782657038000,-277.30924133,0.00024656,2]
[426597640,1782657038000,-849.4,0.00024657,2]
[426597638,1782657038000,-1267.58,0.00024657,2]
[426597656,1782657038000,-500.0,0.00024657,2]
[426597655,1782657038000,-528.99762443,0.00024657,2]
[426597657,1782657038000,-1000.0,0.00024657,2]
[426597658,1782657038000,-379.7723956,0.00024657,2]
[426597659,1782657038000,-500.0,0.00024657,2]
[426597661,1782657038000,-1002.14,0.00024657,2]
[426597654,1782657038000,-514.50409608,0.00024657,2]
[426597662,1782657038000,-500.0,0.00024657,2]
[426597665,1782657038000,-4681.91,0.00024657,2]
[426597663,1782657038000,-502.53726774,0.00024657,2]
[426597664,1782657038000,-500.0,0.00024657,2]
[426597666,1782657038000,-500.0,0.00024657,2]
[426597667,1782657038000,-500.0,0.00024657,2]
[426597668,1782657038000,-651.45,0.00024657,2]
[426597660,1782657038000,-500.0,0.00024657,2]
[426597652,1782657038000,-500.0,0.00024657,2]
[426597635,1782657038000,-513.34,0.00024657,2]
[426597650,1782657038000,-796.45,0.00024657,2]
[426597651,1782657038000,-543.76263401,0.00024657,2]
[426597641,1782657038000,-500.0,0.00024657,2]
[426597634,1782657038000,-500.0,0.00024657,2]
[426597636,1782657038000,-170.68760869,0.00024657,2]
[426597639,1782657038000,-505.92419006,0.00024657,2]
[426597642,1782657038000,-500.0,0.00024657,2]
[426597643,1782657038000,-1000.0,0.00024657,2]
[426597637,1782657038000,-329.31239131,0.00024657,2]
[426597645,1782657038000,-500.0,0.00024657,2]
[426597647,1782657038000,-518.87359143,0.00024657,2]
[426597646,1782657038000,-572.94,0.00024657,2]
[426597648,1782657038000,-595.27,0.00024657,2]
[426597649,1782657038000,-500.0,0.00024657,2]
[426597653,1782657038000,-500.0,0.00024657,2]
[426597644,1782657038000,-500.0,0.00024657,2]
[426597701,1782657039000,-516.12,0.00024657,2]
[426597690,1782657039000,-500.0,0.00024657,2]
[426597695,1782657039000,-500.0,0.00024657,2]
[426597694,1782657039000,-1169.09,0.00024657,2]
[426597697,1782657039000,-500.0,0.00024657,2]
[426597696,1782657039000,-1532.44,0.00024657,2]
[426597698,1782657039000,-544.81766129,0.00024657,2]
[426597699,1782657039000,-439.50000001,0.00024657,2]
[426597702,1782657039000,-500.0,0.00024657,2]
[426597709,1782657039000,-1251.28,0.00024657,2]
[426597704,1782657039000,-152.5769777,0.00024657,2]
[426597703,1782657039000,-867.01,0.00024657,2]
[426597705,1782657039000,-500.0,0.00024657,2]
[426597707,1782657039000,-601.98,0.00024657,2]
[426597706,1782657039000,-500.0,0.00024657,2]
[426597708,1782657039000,-942.36,0.00024657,2]
[426597691,1782657039000,-500.0,0.00024657,2]
[426597711,1782657039000,-500.0,0.00024657,2]
[426597700,1782657039000,-500.0,0.00024657,2]
[426597692,1782657039000,-500.0,0.00024657,2]
[426597693,1782657039000,-572.23043738,0.00024657,2]
[426597684,1782657039000,-500.0,0.00024657,2]
[426597671,1782657039000,-500.0,0.00024657,2]
[426597670,1782657039000,-500.0,0.00024657,2]
[426597672,1782657039000,-500.0,0.00024657,2]
[426597674,1782657039000,-524.57495,0.00024657,2]
[426597673,1782657039000,-500.0,0.00024657,2]
[426597675,1782657039000,-524.57495,0.00024657,2]
[426597677,1782657039000,-524.57495,0.00024657,2]
[426597676,1782657039000,-500.0,0.00024657,2]
[426597679,1782657039000,-524.57495,0.00024657,2]
[426597680,1782657039000,-524.57495,0.00024657,2]
[426597681,1782657039000,-524.57495,0.00024657,2]
[426597678,1782657039000,-524.57495,0.00024657,2]
[426597687,1782657039000,-500.0,0.00024657,2]
[426597712,1782657039000,-2140.54,0.00024657,2]
[426597685,1782657039000,-500.0,0.00024657,2]
[426597689,1782657039000,-500.0,0.00024657,2]
[426597683,1782657039000,-500.0,0.00024657,2]
[426597686,1782657039000,-761.09,0.00024657,2]
[426597682,1782657039000,-524.574956,0.00024657,2]
[426597688,1782657039000,-500.0,0.00024657,2]
[426597710,1782657039000,-2069.7,0.00024657,2]
[426597720,1782657039000,-500.0,0.00024657,2]
[426597714,1782657039000,-6888.18,0.00024657,2]
[426597739,1782657039000,-617.48987724,0.00024657,2]
[426597742,1782657039000,-500.0,0.00024657,2]
[426597741,1782657039000,-987.17,0.00024657,2]
[426597744,1782657039000,-1074.62,0.00024657,2]
[426597743,1782657039000,-163.48292348,0.00024657,2]
[426597746,1782657039000,-1126.28,0.00024657,2]
[426597745,1782657039000,-2716.86,0.00024657,2]
[426597753,1782657039000,-256.938659,0.00024657,2]
[426597747,1782657039000,-1999.3,0.00024657,2]
[426597750,1782657039000,-1207.51,0.00024657,2]
[426597752,1782657039000,-500.0,0.00024657,2]
[426597748,1782657039000,-587.65,0.00024657,2]
[426597754,1782657039000,-2831.74,0.00024657,2]
[426597751,1782657039000,-306.14712935,0.00024657,2]
[426597755,1782657039000,-741.79,0.00024657,2]
[426597757,1782657039000,-722.35,0.00024657,2]
[426597758,1782657039000,-500.0,0.00024657,2]
[426597756,1782657039000,-500.0,0.00024657,2]
[426597759,1782657039000,-4369.07162951,0.00024657,2]
[426597740,1782657039000,-500.0,0.00024657,2]
[426597736,1782657039000,-500.0,0.00024657,2]
[426597734,1782657039000,-592.88,0.00024657,2]
[426597738,1782657039000,-1262.43,0.00024657,2]
[426597716,1782657039000,-586.35,0.00024657,2]
[426597715,1782657039000,-500.0,0.00024657,2]
[426597717,1782657039000,-1122.17,0.00024657,2]
[426597719,1782657039000,-579.84,0.00024657,2]
[426597721,1782657039000,-1283.94,0.00024657,2]
[426597722,1782657039000,-968.57,0.00024657,2]
[426597723,1782657039000,-1932.46,0.00024657,2]
[426597727,1782657039000,-500.0,0.00024657,2]
[426597713,1782657039000,-523.17,0.00024657,2]
[426597724,1782657039000,-500.0,0.00024657,2]
[426597725,1782657039000,-723.43,0.00024657,2]
[426597729,1782657039000,-500.0,0.00024657,2]
[426597730,1782657039000,-500.0,0.00024657,2]
[426597728,1782657039000,-881.94,0.00024657,2]
[426597731,1782657039000,-500.0,0.00024657,2]
[426597733,1782657039000,-795.34,0.00024657,2]
[426597732,1782657039000,-500.0,0.00024657,2]
[426597735,1782657039000,-500.0,0.00024657,2]
[426597737,1782657039000,-709.41,0.00024657,2]
[426597726,1782657039000,-500.0,0.00024657,2]
[426597789,1782657040000,-39.08837049,0.00024657,2]
[426597792,1782657040000,-1237.30131326,0.00024657,2]
[426597835,1782657040000,-1075.77962423,0.00024657,2]
[426597837,1782657040000,-461.79241987,0.00024657,2]
[426597832,1782657040000,-219.05906251,0.00024657,2]
[426597790,1782657040000,-1624.24,0.00024657,2]
[426598119,1782657043000,-38.20758013,0.00024657,2]
[426598115,1782657043000,-3492.97026135,0.00024557,2]
[426598124,1782657043000,-88.12215852,0.00024657,2]
[426598121,1782657043000,-2651.7,0.00024657,2]
[426598427,1782657046000,-372.03579251,0.00024657,2]
[426598426,1782657046000,-411.87784148,0.00024657,2]
[426598429,1782657331000,3136.66,0.00030136,30]
[426598431,1782657483000,160.0,0.00029147,30]
[426598435,1782657640000,1324.39859859,0.00013,2]
[426598436,1782657648000,2493.97020398,0.00013,2]
[426598444,1782657843000,3209.97158845,0.0001,2]
[426598446,1782657905000,318.10818441,0.0001,2]
[426598459,1782658115000,160.0,0.00029144,30]
[426598734,1782658238000,-217.39997712,0.0001377,7]
[426598735,1782658238000,-163.44479411,0.0001377,7]
[426598738,1782658238000,-163.44479411,0.00014175,7]
[426598741,1782658238000,-163.44479411,0.0001458,7]
[426598742,1782658238000,-163.44479415,0.0001512,7]
[426598744,1782658238000,-421.222163,0.00023083,2]
[426598746,1782658238000,-421.222163,0.00024054,2]
[426598754,1782658238000,-1000.0,0.00024657,2]
[426598749,1782658238000,-3056.34897869,0.00024557,2]
[426598750,1782658238000,-1914.7038574,0.00024646,2]
[426598751,1782658238000,-500.0,0.00024648,2]
[426598732,1782658238000,-163.44479411,0.000135,7]
[426598752,1782658238000,-183.51570431,0.00024648,2]
[426598756,1782658238000,-53.65338862,0.00024657,2]
[426598755,1782658238000,-577.33744131,0.00024657,2]
[426598748,1782658238000,-451.03018944,0.00024557,2]
[426598753,1782658238000,-551.72,0.00024656,2]
[426598895,1782658246000,-536.42,0.0002441,2]
[426598897,1782658380000,342.0,0.00024166,30]
[426598898,1782658578000,1883180.64922398,0.00029144,30]
[426598903,1782658648000,5017.68633494,0.00013,2]
[426598904,1782658657000,12635.86508963,7.6e-05,2]
[426598905,1782658657000,6425.95837627,7.6e-05,2]
[426598906,1782658665000,6470.68449181,0.00012,2]
[426598907,1782658666000,400.0,0.0002,30]
[426598908,1782658669000,5002.35458678,0.0003,60]
[426598909,1782658760000,417.15472785,0.00029144,30]
[426599019,1782658900000,489899.05955813,0.00024557,120]
[426599020,1782658911000,243.97121906,0.00029937,30]
[426599021,1782658915000,627.418829,0.0002841,120]
[426599043,1782658938000,500.0,0.00027684,30]
[426599044,1782658939000,500.0,0.00027684,30]
[426599045,1782658939000,500.0,0.00027684,30]
[426599049,1782658940000,960.8170773,0.00027684,30]
[426599047,1782658940000,500.0,0.00027684,30]
[426599052,1782658941000,500.0,0.00026224,30]
[426599051,1782658941000,500.0,0.00026224,30]
[426599050,1782658941000,500.0,0.00026224,30]
[426599054,1782658942000,960.8170773,0.00026224,30]
[426599053,1782658942000,500.0,0.00026224,30]
[426599059,1782658947000,293.45968774,0.00029144,110]
[426599058,1782658947000,293.45968774,0.00029144,110]
[426599057,1782658947000,305.90290782,0.00029144,120]
[426599055,1782658947000,305.90290782,0.00029144,120]
[426599056,1782658947000,293.45968774,0.00029144,110]
[426599060,1782658948000,305.90290782,0.00029144,120]
[426599061,1782658948000,296.08157909,0.00024657,120]
[426599063,1782658955000,500.0,0.00027684,30]
[426599062,1782658955000,460.09968322,0.0001,2]
[426599065,1782658956000,500.0,0.00027684,30]
[426599064,1782658956000,500.0,0.00027684,30]
[426599067,1782658957000,500.0,0.00027684,30]
[426599066,1782658957000,500.0,0.00027684,30]
[426599069,1782658958000,500.0,0.00027684,30]
[426599068,1782658958000,500.0,0.00027684,30]
[426599071,1782658959000,500.0,0.00027684,30]
[426599070,1782658959000,500.0,0.00027684,30]
[426599073,1782658960000,500.0,0.00027684,30]
[426599072,1782658960000,500.0,0.00029136,120]
[426599075,1782658960000,500.0,0.00029136,120]
[426599074,1782658960000,500.0,0.00027684,30]
[426599076,1782658961000,500.0,0.00029136,120]
[426599078,1782658962000,500.0,0.00026224,30]
[426599077,1782658962000,500.0,0.00029136,120]
[426599079,1782658963000,500.0,0.00029136,120]
[426599084,1782658964000,500.0,0.00029136,120]
[426599083,1782658964000,500.0,0.00026224,30]
[426599082,1782658964000,500.0,0.00026224,30]
[426599080,1782658964000,500.0,0.00026224,30]
[426599081,1782658964000,500.0,0.00029136,120]
[426599085,1782658965000,500.0,0.00026224,30]
[426599087,1782658965000,500.0,0.00026224,30]
[426599086,1782658965000,500.0,0.00029136,120]
[426599088,1782658966000,500.0,0.00026224,30]
[426599090,1782658966000,500.0,0.00026224,30]
[426599089,1782658966000,500.0,0.00029136,120]
[426599093,1782658967000,500.0,0.00026224,30]
[426599092,1782658967000,500.0,0.00029136,120]
[426599091,1782658967000,500.0,0.00026224,30]
[426599097,1782658968000,836.125,0.00026224,30]
[426599096,1782658968000,500.0,0.00026224,30]
[426599095,1782658968000,500.0,0.00029136,120]
[426599094,1782658968000,500.0,0.00026224,30]
[426599099,1782658969000,500.0,0.00029136,120]
[426599098,1782658969000,500.0,0.00029136,120]
[426599100,1782658970000,500.0,0.00029136,120]
[426599101,1782658971000,500.0,0.00029136,120]
[426599102,1782658972000,500.0,0.00029136,120]
[426599103,1782658973000,500.0,0.00029136,120]
[426599104,1782658973000,500.0,0.00029136,120]
[426599105,1782658975000,500.0,0.00029136,120]
[426599106,1782658976000,500.0,0.00029136,120]
[426599107,1782658977000,500.0,0.00029136,120]
[426599108,1782658978000,500.0,0.00029136,120]
[426599110,1782658979000,500.0,0.00029136,120]
[426599112,1782658980000,500.0,0.00029136,120]
[426599111,1782658980000,500.0,0.00029136,120]
[426599113,1782658988000,500.0,0.00027397,120]
[426599114,1782659019000,166.66666667,0.000121,90]
[426599124,1782659061000,500.0,0.00029136,120]
[426599276,1782659106000,159.0,0.00029808,36]
[426599277,1782659111000,185.0,0.00028604,120]
[426599278,1782659112000,185.0,0.00030034,120]
[426599280,1782659128000,173.0,0.00028745,120]
[426599282,1782659131000,474.86787277,0.0001217,2]
[426599306,1782659210000,5000.0,0.0001251,2]
[426599309,1782659215000,174.936957,0.0001587,80]
[426599308,1782659215000,174.936957,0.0001587,61]
[426599307,1782659215000,174.936957,0.0001587,41]
[426599310,1782659215000,174.936957,0.0001587,100]
[426599311,1782659216000,174.936957,0.0001587,120]
[426599312,1782659219000,5000.0,0.0001251,2]
[426599313,1782659221000,550.81550991,0.0001217,2]
[426599315,1782659234000,5000.0,0.0001251,2]
[426599317,1782659243000,4851.66122016,0.0001251,2]
[426599320,1782659257000,5000.0,0.0001251,2]
[426599321,1782659259000,500.0,0.00027686,30]
[426599323,1782659260000,500.0,0.00026226,30]
[426599322,1782659260000,668.0625,0.00027686,30]
[426599324,1782659261000,668.0625,0.00026226,30]
[426599327,1782659280000,5000.0,0.0001251,2]
[426599329,1782659302000,5000.0,0.0001251,2]
[426599328,1782659302000,160.0,0.00029146,30]
[426599331,1782659319000,166.66666667,0.000121,90]
[426599332,1782659324000,5000.0,0.0001251,2]
[426599333,1782659339000,724.15141995,0.0001251,2]
[426599334,1782659348000,5000.0,0.0001251,2]
[426599431,1782659370000,1866.02466779,0.0001251,2]
[426599502,1782659432000,-486.78936831,0.0001488,2]
[426599497,1782659432000,-11453.82476482,0.0001488,2]
[426599481,1782659432000,-200.0,0.00014835,2]
[426599477,1782659432000,-422.99174035,0.00013233,14]
[426599476,1782659432000,-151.0,0.00012581,2]
[426599479,1782659432000,-726.52388209,0.000145,2]
[426599483,1782659432000,-300.0,0.00014879,2]
[426599485,1782659432000,-2696.04647017,0.0001488,2]
[426599595,1782659438000,-2120.49374267,0.000153,7]
[426599606,1782659438000,-420.0,0.00016286,2]
[426599604,1782659438000,-2120.49374267,0.000162,7]
[426599610,1782659438000,-454.64923018,0.00016798,2]
[426599591,1782659438000,-264.67565305,0.00015,2]
[426599603,1782659438000,-1414.5688289,0.00015999,2]
[426599593,1782659438000,-2120.49374267,0.00015,7]
[426599588,1782659438000,-363.3393967,0.0001488,2]
[426599597,1782659438000,-2120.49374267,0.0001575,7]
[426599608,1782659438000,-187.01191223,0.00016292,2]
[426599599,1782659438000,-174.936957,0.0001587,2]
[426599614,1782659438000,-781.08695527,0.00016798,2]
[426599612,1782659438000,-781.08695527,0.00016798,2]
[426599616,1782659438000,-781.08695527,0.00016798,2]
[426599633,1782659438000,-781.08695527,0.00016798,2]
[426599631,1782659438000,-781.08695527,0.00016798,2]
[426599635,1782659438000,-781.08695527,0.00016798,2]
[426599629,1782659438000,-781.08695527,0.00016798,2]
[426599637,1782659438000,-781.08695527,0.00016798,2]
[426599626,1782659438000,-781.08695527,0.00016798,2]
[426599620,1782659438000,-781.08695527,0.00016798,2]
[426599618,1782659438000,-781.08695527,0.00016798,2]
[426599601,1782659438000,-174.936957,0.0001587,21]
[426599628,1782659438000,-781.08695527,0.00016798,2]
[426599719,1782659439000,-500.0,0.00016798,2]
[426599733,1782659439000,-500.0,0.00016798,2]
[426599714,1782659439000,-781.08695527,0.00016798,2]
[426599698,1782659439000,-781.08695527,0.00016798,2]
[426599710,1782659439000,-781.08695527,0.00016798,2]
[426599708,1782659439000,-781.08695527,0.00016798,2]
[426599702,1782659439000,-781.08695527,0.00016798,2]
[426599704,1782659439000,-781.08695527,0.00016798,2]
[426599700,1782659439000,-781.08695527,0.00016798,2]
[426599715,1782659439000,-781.08695527,0.00016798,2]
[426599706,1782659439000,-781.08695527,0.00016798,2]
[426599712,1782659439000,-781.08695527,0.00016798,2]
[426599721,1782659439000,-500.0,0.00016798,2]
[426599734,1782659439000,-500.0,0.00016798,2]
[426599717,1782659439000,-500.0,0.00016798,2]
[426599723,1782659439000,-500.0,0.00016798,2]
[426599731,1782659439000,-500.0,0.00016798,2]
[426599727,1782659439000,-500.0,0.00016798,2]
[426599729,1782659439000,-500.0,0.00016798,2]
[426599736,1782659439000,-500.0,0.00016798,2]
[426599740,1782659439000,-500.0,0.00016798,2]
[426599738,1782659439000,-500.0,0.00016798,2]
[426599746,1782659439000,-500.0,0.00016798,2]
[426599742,1782659439000,-316.23456131,0.00016798,2]
[426599755,1782659439000,-500.0,0.00016798,2]
[426599687,1782659439000,-781.08695527,0.00016798,2]
[426599725,1782659439000,-500.0,0.00016798,2]
[426599695,1782659439000,-781.08695527,0.00016798,2]
[426599643,1782659439000,-781.08695527,0.00016798,2]
[426599693,1782659439000,-781.08695527,0.00016798,2]
[426599639,1782659439000,-781.08695527,0.00016798,2]
[426599641,1782659439000,-781.08695527,0.00016798,2]
[426599748,1782659439000,-500.0,0.00016798,2]
[426599645,1782659439000,-781.08695527,0.00016798,2]